Cogmind - Beta 16.1 @@@ ROGUE MODE // 2026.04.18 @ 17:21:57 Player: obl-vn Result: Destroyed by Y-45 Defender with Heavy Assault Rifle Performance ------------- Evolutions (2) 1000 Regions Visited (7) 1400 Robots Destroyed (71) 355 Value Destroyed (1488) 1488 Prototype IDs (31) 620 Alien Tech Used (0) 0 Bonus (800) 800 TOTAL SCORE: 5663 Bonus ------- Hunted by Unchained 500 Aligned with FarCom 300 Cogmind --------- Core Integrity 0/550 Matter 216/300 Energy 174/300 System Corruption 0% Temperature Cool (3) Movement Hovering (66) Location -8/Materials Parts ------- > --- POWER (1) -------- (None) > --- PROPULSION (3) --- Gravmag Array Combat Antigrav System > --- UTILITY (5) ------ Large Storage Unit Compact Battery Experimental Melee Analysis Suite Improved Utility Shielding Improved System Guard > --- WEAPON (2) ------- Great Maul > --- INVENTORY (15) --- Reinforced Fission Core Hybrid Antimatter Reactor High-capacity Matter Pod (200) Experimental Targeting Computer Advanced Weapon Cycler Experimental Weapon Shielding Advanced Component Analysis Suite AS-neutralizer No. 17b CL-ANK's Mallet Peak State ------------ > --- POWER ------------ Light Deuterium Engine > --- PROPULSION ------- Advanced Myomer Leg Advanced Myomer Leg > --- UTILITY ---------- High-capacity Storage Unit Experimental Melee Analysis Suite Experimental Weapon Shielding Improved Light Armor Plating Improved System Guard > --- WEAPON ----------- CL-ANK's Mallet > --- INVENTORY -------- Reinforced Fission Core Hybrid Antimatter Reactor Gravmag Array Combat Antigrav System Heat Sink Large Storage Unit High-capacity Matter Pod Experimental Targeting Computer Advanced Weapon Cycler Advanced Component Analysis Suite AS-neutralizer No. 17b Heavy Assault Rifle Minigun Shock Bomb Launcher [Rating: 70] Favorites ----------- Power Light Nuclear Core Engine Reinforced Ion Engine Power Core Light Nuclear Core Propulsion Light Treads Treads Light Treads Leg Advanced Myomer Leg Hover Unit Gravmag Array Utility High-capacity Storage Unit Device Improved Heat Sink Storage High-capacity Storage Unit Processor Advanced Targeting Computer Protection Medium Armor Plating Weapon Heavy Assault Rifle Energy Gun Small Laser Ballistic Gun Heavy Assault Rifle Ballistic Cannon Light Cannon Launcher Rocket Launcher Impact Weapon CL-ANK's Mallet Slashing Weapon Longsword +1 Build | -11 -10 -10 -9 -9 -9 -8 -8 ------- Run | Yrd Mat Min Mat Min Exi Min Mat Slots Evolved 4 | . . . 2 . . . 2 Power . | . . . . . . . . Propulsion 1 | . . . 1 . . . . Utility 3 | . . . 1 . . . 2 Weapon . | . . . . . . . . Parts Attached 78 | 6 7 2 14 . 20 7 22 Power 6 | 1 1 . . . 2 1 1 Engine 5 | 1 . . . . 2 1 1 Core 1 | . 1 . . . . . . Reactor . | . . . . . . . . Propulsion 23 | 2 1 . 7 . 7 2 4 Treads 18 | 2 1 . 7 . 5 2 1 Leg 3 | . . . . . 2 . 1 Wheel . | . . . . . . . . Hover 2 | . . . . . . . 2 Flight . | . . . . . . . . Utility 30 | 1 3 . 3 . 6 3 14 Device 9 | . 1 . 1 . 3 2 2 Storage 5 | 1 1 . . . . 1 2 Processor 5 | . . . 1 . . . 4 Hackware . | . . . . . . . . Protection 11 | . 1 . 1 . 3 . 6 Artifact . | . . . . . . . . Weapon 19 | 2 2 2 4 . 5 1 3 Energy Gun 1 | . . 1 . . . . . Energy Cannon . | . . . . . . . . Ballistic Gun 12 | 2 1 . 4 . 3 . 2 Ballistic Cannon 1 | . 1 . . . . . . Launcher 2 | . . 1 . . 1 . . Special Weapon . | . . . . . . . . Impact Weapon 2 | . . . . . . 1 1 Slashing Weapon 1 | . . . . . 1 . . Piercing Weapon . | . . . . . . . . Special Melee Weapon . | . . . . . . . . Unidentified Prototypes 4 | . . . . . 3 1 . Corrupted Parts 1 | . . . . . . . 1 System Corruption 3 | . . . . . . . 3 Parts Lost 31 | . 3 . 2 . 11 3 12 Power 3 | . . . . . 1 1 1 Propulsion 10 | . . . . . 4 1 5 Utility 11 | . 1 . 1 . 4 . 5 Weapon 7 | . 2 . 1 . 2 1 1 Highest Loss Streak 6 | . 2 . 2 . 6 3 4 To Critical Strikes 5 | . . . 1 . 3 1 . Average Backups 13 | 1 8 16 18 20 9 17 16 Power 1 | . . 2 2 3 . 1 2 Propulsion 3 | . 3 5 5 5 2 5 3 Utility 4 | . 2 5 5 4 2 7 8 Weapon 3 | . 1 4 5 8 3 2 2 Tool/Special . | . . . . . . . . Unused Backups 25 | . . . 7 . 11 1 6 Power 8 | . . . 1 . 4 . 3 Propulsion . | . . . . . . . . Utility 10 | . . . 3 . 5 . 2 Weapon 7 | . . . 3 . 2 1 1 Tool/Special . | . . . . . . . . Average Slot Usage (%) 90 | . 92 100 99 100 80 86 79 Engine 3 | . 7 . . . 6 1 4 Core 7 | . 6 14 11 11 4 1 . Treads 28 | . 27 28 32 33 32 33 13 Leg 1 | . . . . . . . 8 Device 3 | . 5 . 6 . 2 8 3 Storage 10 | . 14 14 11 11 5 12 10 Processor 6 | . . . 4 11 11 11 15 Protection 8 | . 1 14 11 11 7 . 11 Ballistic Gun 12 | . 22 2 16 22 6 18 6 Ballistic Cannon 3 | . 5 14 4 . . . . Launcher 1 | . . 5 . . . . . Peak Build Rating 70 | 6 13 13 20 20 39 43 70 Average Rating 20 | 4 9 12 18 20 20 27 48 On Entrance 16 | . 6 13 13 20 20 31 25 Avg Prop Armor Cover (%) . | . . . . . . . . Naked Turns . | . . . . . . . . Heaviest Build 62 | 13 59 59 60 58 57 53 62 Greatest Support 66 | 40 40 40 60 60 66 60 60 Greatest Overweight (x) 1 | . 1 1 . . 1 . 1 Average Overweight (x) . | . . 1 . . . . . Largest Inventory Capacity 20 | 8 20 20 20 20 20 20 20 Average Capacity 16 | 7 12 20 20 20 12 20 19 Most Carried 20 | 5 16 17 20 20 20 20 20 Average Carried 13 | 1 8 16 18 20 9 18 18 Final Capacity 20 | 8 20 20 20 20 20 20 15 Final Carried 20 | . 16 16 20 20 19 19 10 Class Distribution -------------------- 51% | Mutant 44% | Scavenger-Mutant 3% | Scavenger-Gladiator Dominant Class ---------------- Mutant | -10/Materials Mutant | -10/Mines Scavenger-Mutant | -9/Materials Scavenger-Mutant | -9/Mines Scavenger-Mutant | -9/Exiles Scavenger-Mutant | -8/Mines Scavenger-Mutant | -8/Materials Resources | -11 -10 -10 -9 -9 -9 -8 -8 ----------- Run | Yrd Mat Min Mat Min Exi Min Mat Matter Collected 2907 | 159 513 82 699 21 993 196 244 Remotely . | . . . . . . . . Salvage Created 2672 | . 480 127 1108 70 491 104 292 Parts 188 | . 29 10 69 . 66 4 10 Haulers Intercepted 4 | . 2 . 2 . . . . Recyclers Shooed 4 | . . . 3 . . . 1 Parts Field Recycled . | . . . . . . . . Retrieved Matter . | . . . . . . . . Parts Self-Destructed . | . . . . . . . . Prevented . | . . . . . . . . Parts Restored . | . . . . . . . . Kills | -11 -10 -10 -9 -9 -9 -8 -8 ------- Run | Yrd Mat Min Mat Min Exi Min Mat Combat Hostiles Destroyed 54 | . 13 5 21 1 5 1 8 Melee 3 | . . . . . 1 . 2 Guns 35 | . 10 . 15 1 4 1 4 Cannons 9 | . 3 2 4 . . . . AOE 5 | . . 3 2 . . . . Classes Destroyed 15 | . 6 1 3 . 3 1 1 Worker 3 | . . 2 1 . . . . Builder 1 | . . . . . . 1 . Hauler 4 | . 2 . 2 . . . . Recycler 5 | . 1 . 3 . . . 1 Operator 1 | . . . 1 . . . . Turret 1 | . . . . . 1 . . Watcher 3 | . 2 . 1 . . . . Swarmer 19 | . 6 3 6 . . . 4 Grunt 15 | . 5 2 6 . . . 2 Brawler 2 | . . . 2 . . . . Sentry 8 | . . . 7 . . . 1 Hunter 1 | . . . . . . . 1 Subdweller 2 | . 2 . . . . . . Zionite 1 | . . . . . 1 . . Assembled 4 | . . . . . 4 . . Best Kill Streak 7 | . 4 3 7 1 4 1 3 Combat Bots Only 6 | . 3 3 6 1 4 1 2 Max Kills in Single Turn 2 | . 1 2 1 1 1 1 1 Gunslinging . | . . . . . . . . Exploded 2 | . . 2 1 . . . . Melee 1 | . . . . . 1 . 1 Uniques/NPCs Destroyed 6 | . . . . 1 4 1 . YI-UF0 (-9/Mines) 8R-AWN (-9/Exiles) EX-BIN (-9/Exiles) EX-DEC (-9/Exiles) EX-HEX (-9/Exiles) CL-ANK (-8/Mines) Combat | -11 -10 -10 -9 -9 -9 -8 -8 -------- Run | Yrd Mat Min Mat Min Exi Min Mat Hostile Shots Fired 426 | . 77 10 86 6 83 3 161 Missed 103 | . 21 3 28 2 10 . 39 Hits 323 | . 56 7 58 4 73 3 122 Melee 30 | . . . 7 . 20 3 . Projectile 293 | . 56 7 51 4 53 . 122 AOE 7 | . . . . 6 . . 1 Critical Strikes 34 | . 2 . 3 . 21 3 5 Damage Taken 6272 | . 606 91 790 217 1667 261 2640 Core 1002 | . 74 30 66 41 231 . 560 Absorbed by Shields . | . . . . . . . . Redirected to Shielding 234 | . . . . . . . 234 Ignored by Resistances 32 | . . . . . . . 32 Regen/Repaired (Parts) 92 | . 92 . . . . . . Core Remaining (%) 57 | 100 . 58 . . . 15 . Volleys Fired 279 | . 84 9 82 3 74 17 10 Largest 2 | . 2 2 2 2 2 2 2 Hottest 70 | . 50 60 70 46 53 53 48 Shots Fired 493 | . 163 15 156 6 102 31 20 Gun 405 | . 145 6 121 6 76 31 20 Cannon 58 | . 18 7 33 . . . . Launcher 30 | . . 2 2 . 26 . . Special . | . . . . . . . . Kinetic 460 | . 163 13 151 6 76 31 20 Thermal 3 | . . . 3 . . . . Explosive 4 | . . 2 2 . . . . Electromagnetic 26 | . . . . . 26 . . Robot Hit Streak 29 | . 9 7 29 5 6 11 12 Robot Miss Streak 6 | . 6 2 5 3 3 3 4 Penetration Max 2 | . . . . . 2 . . Secondary Targets 7 | . 1 . 2 . 3 . 1 Max Gunslinging Chain 1 | . 1 . 1 . 1 . 1 Shots Hit Robots 355 | . 98 9 111 5 70 25 37 Core Hits 137 | . 35 7 43 3 26 11 12 Critical Kills 2 | . 1 . . . 1 . . Critical Parts Destroyed 12 | . . . . . 8 1 3 Critical Strikes 19 | . 1 . . . 11 2 5 Destroy 12 | . 1 . . . 9 2 . Smash 5 | . . . . . . . 5 Sever 2 | . . . . . 2 . . Melee Attacks 61 | . . . . . 30 . 31 Kinetic 10 | . . . . . . . 10 Impact 21 | . . . . . . . 21 Slashing 30 | . . . . . 30 . . Piercing . | . . . . . . . . Sneak Attacks 1 | . . . . . . . 1 Combat Hostiles . | . . . . . . . . Follow-up Attacks . | . . . . . . . . Damage Inflicted 7560 | . 1062 338 1957 73 2390 269 1471 Guns 3782 | . 841 85 1323 73 998 263 199 Cannons 764 | . 206 82 476 . . . . Explosions 384 | . . 138 142 . 104 . . Melee 2548 | . . . . . 1288 . 1260 Ramming 82 | . 15 33 16 . . 6 12 Kinetic 5068 | . 1047 167 1778 73 998 263 742 Thermal 21 | . . . 21 . . . . Explosive 280 | . . 138 142 . . . . Electromagnetic 104 | . . . . . 104 . . Impact 717 | . . . . . . . 717 Slashing 1288 | . . . . . 1288 . . Piercing . | . . . . . . . . Highest Corruption 7 | . . . 1 1 1 1 7 Average Corruption 1 | . . . 1 1 1 1 4 Corruption Purged 1 | . . . . . . 1 . Corruption Blocked . | . . . . . . . . Effects 41 | . . . 12 2 20 1 6 Message Errors 10 | . . . 3 1 5 . 1 Matter Fused 10 | . . . 3 . 6 . 1 Heat Flow Errors 2 | . . . 1 . . . 1 Energy Discharges 7 | . . . 1 . 4 1 1 Parts Rejected 1 | . . . . . . . 1 Parts Fused 1 | . . . . . 1 . . Data Loss (minor) 4 | . . . 2 . 1 . 1 Data Loss (major) 3 | . . . 1 1 1 . . Alerts 2 | . . . . . 2 . . Weapon Failures 1 | . . . 1 . . . . Overload Shots . | . . . . . . . . Overflow Damage 331 | . 10 9 18 . . . 294 Projectiles 10 | . 10 . . . . . . Explosions 27 | . . 9 18 . . . . Melee 294 | . . . . . . . 294 Knockbacks 20 | . 8 2 4 . . . 6 Impact 6 | . . . . . . . 6 Kinetic 14 | . 8 2 4 . . . . Secondary . | . . . . . . . . Self-Inflicted Damage 5 | . . . . . 5 . . Shots 1 | . . . . . 1 . . Rammed 10 | . 4 4 1 . . 1 . Targets Rammed 13 | . 5 5 1 . . 1 1 Kicked 1 | . . . . . . . 1 Crushed 2 | . 1 1 . . . . . Highest Temperature 124 | . 27 120 124 . 28 20 95 Average Temperature 27 | . 11 42 41 . 16 14 24 Received Heat Transfer 894 | . 183 45 198 . . . 468 Siege Activations . | . . . . . . . . Martial Activations . | . . . . . . . . Shielding Activations . | . . . . . . . . Robots Disrupted . | . . . . . . . . Combat Hostiles . | . . . . . . . . Robots Corrupted 4 | . . . . . 1 . 3 Combat Hostiles 2 | . . . . . . . 2 Parts Fried 5 | . . . . . . . 5 Impact Corruptions 9 | . . . . . . . 9 Robots Melted . | . . . . . . . . Combat Hostiles . | . . . . . . . . Parts Melted . | . . . . . . . . Heat Transferred 50 | . . . 50 . . . . Parts Sabotaged . | . . . . . . . . Parts Stolen . | . . . . . . . . Parts Stripped . | . . . . . . . . Power Chain Reactions . | . . . . . . . . Alert | -11 -10 -10 -9 -9 -9 -8 -8 ------- Run | Yrd Mat Min Mat Min Exi Min Mat Maximum Alert Level 1 | . . . 1 . . . . Low Security (%) 97 | 100 100 100 91 100 . 100 100 Level 1 2 | . . . 8 . . . . Level 2 . | . . . . . . . . Level 3 . | . . . . . . . . Level 4 . | . . . . . . . . Level 5 . | . . . . . . . . High Security . | . . . . . . . . Max Security . | . . . . . . . . Peak Influence 232 | . 129 89 232 1 . 5 74 Initial 1 | . . . . 1 . . . Average 28 | . 18 11 79 . . . 11 Influence Increases 1480 | . 406 149 679 . . 6 240 Destroy 0b10 Robot/C 900 | . 220 100 420 . . . 160 Destroy 0b10 Robot/NC 85 | . 25 10 40 . . 5 5 Destroy Leader 234 | . 58 20 116 . . . 40 Successful Hack 38 | . 13 . 20 . . . 5 Disable Machine 45 | . . . 45 . . . . Destroy Structure 43 | . . 19 23 . . 1 . Lose Combat Pursuer 135 | . 90 . 15 . . . 30 Influence Decreases 1464 | . 406 149 675 4 . 6 224 Entered New Map 3 | . . . . 3 . . . Time Decay 1114 | . 319 149 466 1 . 5 174 Lost Part 71 | . . . 20 . . 1 50 Purge Threat 276 | . 87 . 189 . . . . Squads Dispatched 3 | . 1 . . . . . 2 Investigation 1 | . . . . . . . 1 Extermination . | . . . . . . . . Reinforcement 2 | . 1 . . . . . 1 Assault . | . . . . . . . . Garrison . | . . . . . . . . Intercept . | . . . . . . . . Searches Triggered . | . . . . . . . . Unchained Authorized 1 | . . . . . . . 1 Construction Impeded . | . . . . . . . . Haulers Reinforced . | . . . . . . . . Active Scanning Responses . | . . . . . . . . Cargo Convoy Interrupts . | . . . . . . . . Stealth | -11 -10 -10 -9 -9 -9 -8 -8 --------- Run | Yrd Mat Min Mat Min Exi Min Mat Distress Signals 5 | . 1 . 2 . . . 2 Communications Jammed . | . . . . . . . . Distress Signals . | . . . . . . . . Times Spotted 140 | . 32 4 43 1 34 1 25 Peak Tracking Total 9 | . 6 3 6 1 9 1 5 Tactical Retreats 20 | . 4 . 1 . 14 . 1 Traps | -11 -10 -10 -9 -9 -9 -8 -8 ------- Run | Yrd Mat Min Mat Min Exi Min Mat Traps Triggered 2 | . 1 . . . . . 1 Indirectly . | . . . . . . . . Trap Hack Attempts . | . . . . . . . . Triggered . | . . . . . . . . Disarmed 3 | . . . 3 . . . . Reprogrammed 4 | . 4 . . . . . . Reused . | . . . . . . . . Traps Extracted . | . . . . . . . . Installed . | . . . . . . . . Triggered . | . . . . . . . . Machines | -11 -10 -10 -9 -9 -9 -8 -8 ---------- Run | Yrd Mat Min Mat Min Exi Min Mat Machines Disabled 13 | . . . 3 . 10 . . Max in Single Turn 1 | . . . 1 . 1 . . Machines Repaired . | . . . . . . . . Machines Dismantled . | . . . . . . . . Machines Sabotaged . | . . . . . . . . Overloaded Fab Kills . | . . . . . . . . Hacking | -11 -10 -10 -9 -9 -9 -8 -8 --------- Run | Yrd Mat Min Mat Min Exi Min Mat Machines Accessed 21 | . 9 . 9 . 1 . 2 Terminals 16 | . 6 . 8 . . . 2 Fabricators . | . . . . . . . . Repair Stations 1 | . 1 . . . . . . Recycling Units 3 | . 2 . 1 . . . . Scanalyzers . | . . . . . . . . Garrison Access . | . . . . . . . . Total Hacks 64 | . 30 . 27 . 1 . 6 Successful 39 | . 20 . 16 . 1 . 2 Failed 24 | . 9 . 11 . . . 4 Catastrophic . | . . . . . . . . Database Lockouts 1 | . 1 . . . . . . Manual 39 | . 18 . 15 . 1 . 5 Terminals 54 | . 23 . 25 . . . 6 Fabricators . | . . . . . . . . Repair Stations 2 | . 2 . . . . . . Recycling Units 7 | . 5 . 2 . . . . Scanalyzers . | . . . . . . . . Garrison Access . | . . . . . . . . Terminal Hacks 14 | . 7 . 6 . 1 . . Robot Analysis 3 | . 2 . 1 . . . . Unreport Threat 4 | . 2 . 2 . . . . Locate Traps 2 | . 2 . . . . . . Disarm Traps 1 | . . . 1 . . . . Reprogram Traps 1 | . 1 . . . . . . Recall Investigation 1 | . . . 1 . . . . Zone Layout 1 | . . . 1 . . . . Proto ID Catalog 1 | . . . . . 1 . . Fabricator Hacks . | . . . . . . . . Repair Station Hacks 2 | . 2 . . . . . . Scan Component 1 | . 1 . . . . . . Repair 1 | . 1 . . . . . . Recycling Unit Hacks 3 | . 2 . 1 . . . . Retrieve Components 3 | . 2 . 1 . . . . Scanalyzer . | . . . . . . . . Garrison Access Hacks . | . . . . . . . . Unauthorized Hacks 20 | . 9 . 9 . . . 2 Terminals 17 | . 7 . 8 . . . 2 Botnet 6 | . 2 . 3 . . . 1 Skim 11 | . 5 . 5 . . . 1 Fabricators . | . . . . . . . . Repair Stations . | . . . . . . . . Recycling Units 3 | . 2 . 1 . . . . Reject 3 | . 2 . 1 . . . . Scanalyzers . | . . . . . . . . Garrison Access . | . . . . . . . . Data Cores Recovered . | . . . . . . . . Used . | . . . . . . . . Hacking Detections 18 | . 7 . 9 . . . 2 Full Trace Events . | . . . . . . . . Feedback Events . | . . . . . . . . Feedback Blocked . | . . . . . . . . Robot Schematics Acquired . | . . . . . . . . Robots Built . | . . . . . . . . Authchips . | . . . . . . . . Time . | . . . . . . . . Total Robot Build Rating . | . . . . . . . . Part Schematics Acquired . | . . . . . . . . Parts Built . | . . . . . . . . Authchips . | . . . . . . . . Time . | . . . . . . . . Total Part Build Rating . | . . . . . . . . Part Studies Acquired . | . . . . . . . . Parts Repaired 1 | . 1 . . . . . . Time 26 | . 26 . . . . . . Parts Recycled . | . . . . . . . . Recycled Matter . | . . . . . . . . Retrieved Matter . | . . . . . . . . Retrieved Components 22 | . 19 . 3 . . . . Parts Scanalyzed . | . . . . . . . . Part Schematics Acquired . | . . . . . . . . Parts Damaged . | . . . . . . . . Bothacking | -11 -10 -10 -9 -9 -9 -8 -8 ------------ Run | Yrd Mat Min Mat Min Exi Min Mat Used RIF Installer . | . . . . . . . . Robots Hacked . | . . . . . . . . Non-combat . | . . . . . . . . Combat . | . . . . . . . . Robot Hacks Applied . | . . . . . . . . Relay Couplers Released . | . . . . . . . . Fabnet Peak Effective % . | . . . . . . . . Robots Rewired . | . . . . . . . . Allies Hacked . | . . . . . . . . Hacks Repelled . | . . . . . . . . Allies | -11 -10 -10 -9 -9 -9 -8 -8 -------- Run | Yrd Mat Min Mat Min Exi Min Mat Total Allies . | . . . . . . . . Largest Group . | . . . . . . . . Highest-Rated Group . | . . . . . . . . Highest-Rated Ally . | . . . . . . . . Total Orders . | . . . . . . . . Ally Attacks 1 | . . . . . 1 . . Total Damage 67 | . . . . . 67 . . Kills 1 | . . . . . 1 . . Allies Corrupted . | . . . . . . . . Allies Melted . | . . . . . . . . Turrets Deployed 1 | . . . . . 1 . . Intel | -11 -10 -10 -9 -9 -9 -8 -8 ------- Run | Yrd Mat Min Mat Min Exi Min Mat Active Infowar (turns) . | . . . . . . . . Robot Analysis Total 3 | . 2 . 1 . . . . Derelict Logs Recovered 2 | . . 2 . . . . . Drone Launches . | . . . . . . . . Drone Recoveries . | . . . . . . . . Exploration | -11 -10 -10 -9 -9 -9 -8 -8 ------------- Run | Yrd Mat Min Mat Min Exi Min Mat Turns Passed 9507 | 67 1828 1371 1726 458 2508 387 1162 Spaces Moved 4107 | 53 757 554 606 280 1263 134 460 Core 26 | 26 . . . . . . . Treads 3810 | 27 757 554 606 280 1259 134 193 Legs 242 | . . . . . 4 . 238 Wheels . | . . . . . . . . Hover 29 | . . . . . . . 29 Flight . | . . . . . . . . Fastest Speed 50 | 50 160 240 160 160 120 160 66 Average Speed 173 | 106 182 240 160 160 159 160 150 Slowest Speed 240 | 160 240 240 160 160 240 160 240 Overloaded Moves . | . . . . . . . . Propulsion Burnouts . | . . . . . . . . Robots Hopped . | . . . . . . . . Potential Cave-ins . | . . . . . . . . Cave-ins Triggered . | . . . . . . . . Exploration Rate (%) 56 | 3 93 93 66 60 89 25 21 Regions Visited 7 Branch Regions 4 Pre-discovered Areas 3 | . 2 . 1 . . . . Known Exits Taken 2 | . . 1 . . . 1 . Unknown Exits Taken 5 | 1 1 . 1 1 1 . . Scrap Searched 1 | . . 1 . . . . . Spaces Dug 18 | . . 14 . . 4 . . Terrain Destroyed 80 | . . 23 49 . 6 2 . Melee . | . . . . . . . . Projectile 7 | . . . . . 5 2 . AOE 72 | . . 23 49 . . . . Terrain Rammed . | . . . . . . . . Walls Destroyed . | . . . . . . . . Machines Disabled . | . . . . . . . . Actions | -11 -10 -10 -9 -9 -9 -8 -8 --------- Run | Yrd Mat Min Mat Min Exi Min Mat Total 5975 | 63 1054 573 1214 284 1645 287 855 Wait 1171 | . 178 2 469 2 117 112 291 Move 4100 | 52 756 553 605 279 1262 133 460 Hop . | . . . . . . . . Pick Up 128 | 5 20 1 19 . 63 4 16 Fast Attach 11 | 1 2 . 1 . 4 2 1 Attach 58 | 5 4 1 6 . 16 6 20 Detach 12 | . . . 1 . 3 4 4 Swap 40 | . 3 1 11 . 14 4 7 Drop 102 | . 2 1 19 . 62 4 14 Fire 279 | . 84 9 82 3 74 17 10 Melee 61 | . . . . . 30 . 31 Ram . | . . . . . . . . Kick 1 | . . . . . . . 1 Crush 12 | . 5 5 1 . . 1 . Escape Stasis . | . . . . . . . . Rewire . | . . . . . . . . Trap . | . . . . . . . . Miscellaneous . | . . . . . . . . Route ------- -11/Scrapyard -10/Materials (discovered 4 exits: *Mat x3 / [*Min]) -10/Mines (discovered 2 exits: *Mat x2) -9/Materials (discovered 5 exits: *Mat x3 / [*Min x2]) -9/Mines -9/Exiles -8/Mines -8/Materials (discovered 1 exit: *Sto) History --------- Turn | Location | Event 4 | -11/Scrapyard | Discovered new exit (range 15) 68 | -11/Scrapyard | Entered Materials 316 | -10/Materials | Build established: Mutant 404 | -10/Materials | Discovered new exit (range 16) 712 | -10/Materials | Discovered new exit (range 16) 903 | -10/Materials | Repaired Lgt. Treads 1106 | -10/Materials | Discovered new exit (range 5) 1368 | -10/Materials | Derelicts attacked the area 1545 | -10/Materials | Central database locked down 1555 | -10/Materials | Identified exit to Materials 1745 | -10/Materials | Learned 2 Storage zone layouts 1807 | -10/Materials | Learned 2 Mines zone layouts 1879 | -10/Materials | Learned location of Mines (-8) 1896 | -10/Materials | Entered Mines 1925 | -10/Mines | Met a Derelict bent on vengeance 2222 | -10/Mines | Learned Materials trap positions 2527 | -10/Mines | Learned Materials security intel 2801 | -10/Mines | Discovered exit to Materials (range 7) 3267 | -10/Mines | Entered Materials 3267 | -9/Materials | Evolved 2 slots: Propulsion x1, Utility x1 3268 | -9/Materials | Loaded intel: 24 trap records 3589 | -9/Materials | Discovered new exit (range 7) 3788 | -9/Materials | Discovered new exit (range 6) 4044 | -9/Materials | Discovered new exit (range 11) 4231 | -9/Materials | Discovered new exit (range 15) 4242 | -9/Materials | Build established: Scavenger-Mutant 4571 | -9/Materials | Identified exit to Materials 4648 | -9/Materials | Learned Storage stockpile data 4715 | -9/Materials | Learned location of 1 exit from Storage 4993 | -9/Materials | Entered Mines 5142 | -9/Mines | Destroyed YI-UF0 5444 | -9/Mines | Deemed a non-threat by the Exiles lab entrance 5444 | -9/Mines | Discovered new exit (range 5) 5451 | -9/Mines | Entered Exiles 5492 | -9/Exiles | Met 8R-AWN 5518 | -9/Exiles | Met EX-HEX 5580 | -9/Exiles | Met EX-DEC 6066 | -9/Exiles | Met EX-BIN 6088 | -9/Exiles | Aligned with FarCom system 6090 | -9/Exiles | Given EX-Vault access code 6128 | -9/Exiles | Opened EX-Vault 6135 | -9/Exiles | Found Prototype Slashing Weapon 6142 | -9/Exiles | Identified Longsword +1 6145 | -9/Exiles | Found PSU Rigger 6154 | -9/Exiles | Found 0b10 Alert Chip 6189 | -9/Exiles | Warned to stay clear of 0b10 Research branches 6854 | -9/Exiles | Attacked by the Exiles 6947 | -9/Exiles | Lost 3 parts (2u1w) 6968 | -9/Exiles | Core integrity fell below 50% 7023 | -9/Exiles | Core integrity fell below 20% 7026 | -9/Exiles | Destroyed 8R-AWN 7041 | -9/Exiles | Lost 6 parts (3n2u1w) 7075 | -9/Exiles | Found Prototype Ballistic Gun 7076 | -9/Exiles | Identified 8R-AWN's Boregun 7081 | -9/Exiles | Found Prototype Processor 7084 | -9/Exiles | Found Prototype Device 7085 | -9/Exiles | Identified AS-neutralizer No. 17b 7230 | -9/Exiles | Build established: Mutant 7484 | -9/Exiles | Destroyed EX-BIN 7510 | -9/Exiles | Destroyed EX-DEC 7523 | -9/Exiles | Identified Exp. Targeting Computer 7537 | -9/Exiles | Found Prototype Device 7589 | -9/Exiles | Found Deploy-a-Sentry 7603 | -9/Exiles | Identified System Purifier 7624 | -9/Exiles | Destroyed EX-HEX 7712 | -9/Exiles | Build established: Scavenger-Mutant 7808 | -9/Exiles | Discovered new exit (range 14) 7853 | -9/Exiles | DAS Turret deployed 7959 | -9/Exiles | Entered Mines 8012 | -8/Mines | CL-ANK came to Exiles' defense 8048 | -8/Mines | Lost 3 parts (1p1n1w) 8134 | -8/Mines | Destroyed CL-ANK 8150 | -8/Mines | Found Prototype Impact Weapon 8151 | -8/Mines | Identified CL-ANK's Mallet 8201 | -8/Mines | Found Prototype Processor 8205 | -8/Mines | Identified Exp. Melee Analysis Suite 8325 | -8/Mines | Discovered exit to Materials (range 12) 8346 | -8/Mines | Entered Materials 8346 | -8/Materials | Evolved 2 slots: Utility x2 8347 | -8/Materials | Identified exit to Storage 8496 | -8/Materials | Unchained authorized (BL-1NK) 8915 | -8/Materials | Lost 3 parts (1n2u) 9059 | -8/Materials | Build established: Scavenger-Gladiator 9401 | -8/Materials | Core integrity fell below 50% 9473 | -8/Materials | Lost 4 parts (1n2u1w) 9476 | -8/Materials | Core integrity fell below 20% 9508 | -8/Materials | Destroyed by Y-45 Defender with Heavy Assault Rifle Last Messages --------------- 09495_ K-01 Serf collects debris. 09497_ U-05 Engineer lays Concrete. 09499_ K-01 Serf collects debris. 09499_ U-05 Engineer lays Concrete. 09501_ U-05 Engineer builds a Wall. 09503_ Penetrated by Slug. 09503_ Slug penetrates Earth. 09503_ Penetrated by Slug. BL-1NK: "Be with you shortly." BL-1NK shrinks and is drawn into a quantum tunnel. 09504_ U-05 Engineer builds a Wall. 09505_ The unstable cave ceiling collapses. 09505_ K-01 Serf collects debris. 09508_ Triggered Alarm Trap. 09508_ An alarm sounds. 09508_ ALERT: Alarm triggered, dispatching investigation squad. 09508_ U-05 Engineer builds a Wall. [Achievement: Overachiever] Map ----- +----------------------------------------------------+ | ?????????????????????????????????????????????????? | | ?????????????????????????????????????????????????? | | ?????????????????????????????????????????????????? | | ?????????????????????????????????????????????????? | | ?????????????????????????????????????????????????? | | ?????????????????????????????????????????????????? | | ?????????????????????????????????????????????????? | | ?????????????????????????????????????????????????? | | ?????????????????????????????????????????????????? | | ?????????????????????????????????????????????????? | | ??????????????????????? ?????????????????????? | | ??????????????????????? ]Yg ?????????????????????? | | ??????????????????????? g ?????????????????????? | | ??????????????????????? ?????????????????????? | | ?????????????????????### #?????????????????????? | | ?????????????????????! #?????????????????????? | | ?????????????????????? #?????????????????????? | | ?????????????????????? ##????????????????????? | | ?????????????????????? ????????????????????? | | ??????????????????????? ?????????????????????? | | ??????????????????????? ?????????????????????? | | ??????????????????????## #?????????????????????? | | ???????????????????????T ##????????????????????? | | ???????????????????????# ;#????????????????????? | | ???????????????????????# ;#????????????????????? | | ?????????????????####### @ #?????????????????????? | | ????????????######## # # #?????????????????????? | | ????????????# # ##????????????????????? | | ????????????# # #????????????????????? | | ????????????# # #????????????????????? | | ????????????# +% T #????????????????????? | | ????????????# ! # #????????????????????? | | ????????????# !! #u #????????????????????? | | ????????????# !! ;#####????????????????????? | | ????????????# k #???????????????????????? | | ????????????#### # # #???????????????????????? | | ?????########??### [ # ###???????????????????????? | | ?????# % = #????## ####?????????????????????????? | | ?????# !! #?????#=#????????????????????????????? | | ?????# #?????# #????????????????????????????? | | ?????# #?????# #????????????????????????????? | | ?????# #?????# #????????????????????????????? | | ?????# [ #?????# #????????????????????????????? | | ?????####+###????## #????????????????????????????? | | ??????# #??####/#"#####??????????????????????? | | ??????# ! ####" = #??????????????????????? | | ??????# " #??????????????????????? | | ??????# ! ##### " " #??????????????????????? | | ?????## ##### " " #??????????????????????? | | ######### ###???# #??????????????????????? | +----------------------------------------------------+ Best States ------------- Heat Dissipation 42 Energy Generation 14 Energy Capacity 300 Matter Stores 491 Matter Capacity 500 Sight Range 16 Terrain Scan Density 10 Additional Mass Support 6 Corruption Containment 12 Armor Coverage 450 Resistance: TH 10 Propulsion Shielding 66 Utility Shielding 66 Weapon Shielding 90 Weapon Cycling 25 Evasion (%) 63 Targeting Accuracy 8 Melee Accuracy 17 Recoil Reduction 3 Item Schematics ----------------- None Robot Schematics ------------------ None Fabricated ------------ Nothing Repaired ---------- Lgt. Treads | 34% | -10/Materials Studied --------- None Alien Tech Used ----------------- None Achievements -------------- Overachiever The Better Part Of Valor Who Guards The Bodyguard? Challenges ------------ None Game ------ Seed HugeGyrokineticNukerbomber Manual? 0 Play Time 01:38:06 Cumulative 120.2 hours Start 2026.04.18 @ 14:53:25 End 2026.04.18 @ 17:21:57 Sessions 3 Manual Loads 0 Difficulty Rogue Special Mode None Game No. 88 Rogue 88 Adventurer 0 Explorer 0 Win Type - Total 1 Types 0/0/0/1/0/0/0/0/0/0 Lore% 46 Gallery% 52 Achievement% 50 Wizard Run 0 Options --------- Layout 2 ASCII 0 Keyboard 0 Movement Mouse Keybinds 0 Fullscreen 1 Font 48/Smallcaps Map View 50x44 Zoom Use 0% Tactical HUD 1 Map Filters NONE Filters NONE Steam 1 RUN: cc46b31b-77bf-42a4-b55a-43f187a07512